fUSD/lending_fUSD_20240428
["ID","MTS","AMOUNT","RATE_DAILY","PERIOD"]
[43348,1714331560545,-1049.2,0.00015068,2]
[43349,1714331560555,-6674.97,0.00015068,2]
[43350,1714331560564,-524.08,0.00015068,2]
[43351,1714331560574,-16083.09,0.00015068,2]
[43352,1714331560583,-723.16,0.00015068,2]
[43353,1714331560592,-761.59,0.00015068,2]
[43355,1714331560611,-1266.3,0.00015068,2]
[43357,1714331560630,-1185.86,0.00015068,2]
[43358,1714331560639,-8626.56,0.00015068,2]
[43359,1714331560648,-2988.7,0.00015068,2]
[43361,1714331560667,-619.85,0.00015068,2]
[43363,1714331560685,-1206.57,0.00015068,2]
[43364,1714331560695,-500.0,0.00015068,2]
[43365,1714331560703,-1600.41,0.00015068,2]
[43367,1714331560722,-3105.73,0.00015068,2]
[43369,1714331560740,-3774.23,0.00015068,2]
[43371,1714331560759,-897.97,0.00015068,2]
[43373,1714331560777,-1975.3,0.00015068,2]
[43374,1714331560787,-2494.32,0.00015068,2]
[43375,1714331560796,-1962.38,0.00015068,2]
[43377,1714331560815,-2736.52,0.00015068,2]
[43378,1714331560824,-2923.81,0.00015068,2]
[43379,1714331560833,-3862.59,0.00015068,2]
[43380,1714331560843,-1242.16,0.00015068,2]
[43381,1714331560853,-678.26,0.00015068,2]
[43383,1714331560871,-1370.1,0.00015068,2]
[43385,1714331560889,-1204.37,0.00015068,2]
[43386,1714331560899,-1288.39,0.00015068,2]
[43387,1714331560908,-20011.43,0.00015068,2]
[43388,1714331560918,-450.67739971,0.00015068,2]
[43389,1714331560927,-565.34869373,0.00015068,2]
[43390,1714331560937,-1538.14,0.00015068,2]
[43391,1714331560947,-8592.95,0.00015068,2]
[43392,1714331560956,-529.13,0.00015068,2]
[43393,1714331560965,-5719.97,0.00015068,2]
[43394,1714331560974,-500.0,0.00015068,2]
[43395,1714331560983,-500.0,0.00015068,2]
[43396,1714331560992,-765.55,0.00015068,2]
[43397,1714331561002,-808.74,0.00015068,2]
[43398,1714331561011,-1086.25,0.00015068,2]
[43399,1714331561021,-673.0,0.00015069,2]
[43400,1714331561030,-300.0,0.000151,2]
[43401,1714331561039,-655.9,0.0001511,3]
[43402,1714331561049,-328.71506121,0.00015123,2]
[43403,1714331561058,-150.0,0.0001513,2]
[43404,1714331561069,-150.0,0.00015188,2]
[43405,1714331561078,-328.71506121,0.00015214,2]
[43406,1714331561088,-150.0,0.00015301,2]
[43407,1714331561098,-328.71506121,0.00015306,2]
[43408,1714331561114,-150.0,0.00015327,2]
[43409,1714331561123,-500.0,0.00015328,2]
[43411,1714331561144,-510.25,0.00015342,2]
[43412,1714331561155,-625.22,0.00015342,2]
[43413,1714331561165,-605.3,0.00015342,2]
[43415,1714331561186,-573.7070436,0.00015342,2]
[43417,1714331561206,-529.75,0.00015342,2]
[43419,1714331561226,-597.62,0.00015342,2]
[43421,1714331561246,-556.86,0.00015342,2]
[43423,1714331561265,-503.88,0.00015342,2]
[43425,1714331561287,-708.28,0.00015342,2]
[43427,1714331561307,-500.0,0.00015342,2]
[43429,1714331561331,-500.0,0.00015342,2]
[43431,1714331561351,-584.81,0.00015342,2]
[43433,1714331561373,-638.09,0.00015342,2]
[43435,1714331561394,-371.28932286,0.00015342,2]
[43437,1714331561413,-649.78,0.00015342,2]
[43439,1714331561431,-550.86,0.00015342,2]
[43441,1714331561450,-681.2,0.00015342,2]
[43443,1714331561469,-666.44,0.00015342,2]
[43445,1714331561487,-500.0,0.00015342,2]
[43447,1714331561505,-514.37,0.00015342,2]
[43449,1714331561523,-770.94,0.00015342,2]
[43451,1714331561542,-500.0,0.00015342,2]
[43452,1714331561551,-500.0,0.00015342,2]
[43453,1714331561560,-596.99,0.00015342,2]
[43455,1714331561578,-351.24118166,0.00015342,2]
[43456,1714331561587,-1224.58,0.00015342,2]
[43457,1714331561597,-574.66,0.00015342,2]
[43459,1714331561615,-624.41,0.00015342,2]
[43460,1714331561624,-523.16,0.00015342,2]
[43461,1714331561633,-557.05,0.00015342,2]
[43463,1714331561652,-500.0,0.00015342,2]
[43464,1714331561661,-678.48,0.00015342,2]
[43465,1714331561671,-500.0,0.00015342,2]
[43467,1714331561691,-533.0,0.00015342,2]
[43469,1714331561710,-621.15535745,0.00015342,2]
[43471,1714331561730,-500.0,0.00015342,2]
[43473,1714331561749,-500.0,0.00015342,2]
[43475,1714331561771,-1142.31,0.00015342,2]
[43477,1714331561790,-606.2,0.00015342,2]
[43479,1714331561810,-618.36,0.00015342,2]
[43481,1714331561829,-629.85,0.00015342,2]
[43483,1714331561848,-507.09,0.00015342,2]
[43485,1714331561868,-1106.8,0.00015342,2]
[43487,1714331561886,-668.56,0.00015342,2]
[43489,1714331561905,-711.18,0.00015342,2]
[43491,1714331561926,-565.5,0.00015342,2]
[43493,1714331561945,-1218.59,0.00015342,2]
[43495,1714331561965,-500.0,0.00015342,2]
[43497,1714331561984,-513.55,0.00015342,2]
[43499,1714331562003,-728.71,0.00015342,2]
[43501,1714331562022,-615.66,0.00015342,2]
[43503,1714331562042,-542.89,0.00015342,2]
[43505,1714331562061,-1308.96,0.00015342,2]
[43507,1714331562080,-815.56,0.00015342,2]
[43509,1714331562100,-920.36,0.00015342,2]
[43511,1714331562119,-500.0,0.00015342,2]
[43513,1714331562138,-592.76,0.00015342,2]
[43515,1714331562156,-765.46,0.00015342,2]
[43517,1714331562175,-585.78,0.00015342,2]
[43519,1714331562194,-519.38,0.00015342,2]
[43521,1714331562213,-1176.19,0.00015342,2]
[43523,1714331562231,-581.86,0.00015342,2]
[43525,1714331562251,-608.78,0.00015342,2]
[43527,1714331562272,-710.87,0.00015342,2]
[43529,1714331562294,-500.0,0.00015342,2]
[43531,1714331562312,-725.07,0.00015342,2]
[43533,1714331562331,-544.86,0.00015342,2]
[43535,1714331562350,-500.0,0.00015342,2]
[43537,1714331562511,-704.75,0.00015342,2]
[43539,1714331562530,-500.0,0.00015342,2]
[43541,1714331562549,-534.78,0.00015342,2]
[43543,1714331562567,-500.0,0.00015342,2]
[43545,1714331562586,-682.92,0.00015342,2]
[43546,1714331562597,-890.23,0.00015342,2]
[43547,1714331562606,-1031.24,0.00015342,2]
[43548,1714331562616,-512.99,0.00015342,2]
[43549,1714331562625,-628.44,0.00015342,2]
[43551,1714331562644,-807.65,0.00015342,2]
[43552,1714331562654,-561.86,0.00015342,2]
[43553,1714331562663,-721.68,0.00015342,2]
[43555,1714331562685,-500.0,0.00015342,2]
[43556,1714331562697,-524.06961841,0.00015342,2]
[43557,1714331562707,-500.0,0.00015342,2]
[43559,1714331562728,-500.0,0.00015342,2]
[43561,1714331562748,-646.9,0.00015342,2]
[43563,1714331562769,-494.30762988,0.00015342,2]
[43565,1714331562789,-998.15,0.00015342,2]
[43567,1714331562810,-627.25,0.00015342,2]
[43569,1714331562829,-573.36,0.00015342,2]
[43571,1714331562848,-565.43,0.00015342,2]
[43573,1714331562868,-700.29,0.00015342,2]
[43575,1714331562887,-544.68,0.00015342,2]
[43577,1714331562907,-500.0,0.00015342,2]
[43578,1714331562916,-219.51605344,0.00015342,2]
[43579,1714331562926,-500.0,0.00015342,2]
[43580,1714331562935,-500.0,0.00015342,2]
[43581,1714331562945,-601.85,0.00015342,2]
[43583,1714331562965,-708.42,0.00015342,2]
[43585,1714331562984,-500.0,0.00015342,2]
[43587,1714331563004,-500.0,0.00015342,2]
[43588,1714331563014,-520.06,0.00015342,2]
[43589,1714331563024,-765.39,0.00015342,2]
[43591,1714331563044,-979.76,0.00015342,2]
[43593,1714331563065,-662.94,0.00015342,2]
[43595,1714331563084,-271.91307314,0.00015342,2]
[43597,1714331563105,-837.85,0.00015342,2]
[43599,1714331563125,-500.0,0.00015342,2]
[43601,1714331563146,-536.2,0.00015342,2]
[43603,1714331563165,-540.89,0.00015342,2]
[43605,1714331563184,-577.63,0.00015342,2]
[43607,1714331563203,-500.0,0.00015342,2]
[43609,1714331563221,-500.0,0.00015342,2]
[43611,1714331563240,-500.0,0.00015342,2]
[43613,1714331563259,-500.0,0.00015342,2]
[43615,1714331563278,-538.0,0.00015342,2]
[43617,1714331563297,-551.04,0.00015342,2]
[43619,1714331563315,-500.0,0.00015342,2]
[43620,1714331563324,-383.63,0.00015342,2]
[43621,1714331563334,-768.34,0.00015342,2]
[43622,1714331563344,-531.88,0.00015342,2]
[43623,1714331563353,-1007.48,0.00015342,2]
[43624,1714331563364,-1772.83,0.00015342,2]
[43625,1714331563379,-532.51,0.00015342,2]
[43627,1714331563399,-986.84,0.00015342,2]
[43628,1714331563410,-598.01,0.00015342,2]
[43629,1714331563420,-625.85,0.00015342,2]
[43630,1714331563432,-805.9,0.00015342,2]
[43631,1714331563442,-1026.14,0.00015342,2]
[43632,1714331563452,-500.0,0.00015342,2]
[43633,1714331563464,-1489.77,0.00015342,2]
[43634,1714331563475,-772.53,0.00015342,2]
[43635,1714331563485,-1492.28,0.00015342,2]
[43636,1714331563495,-622.52,0.00015342,2]
[43637,1714331563506,-2487.11,0.00015342,2]
[43638,1714331563517,-1102.77,0.00015342,2]
[43639,1714331563527,-979.15,0.00015342,2]
[43640,1714331563537,-2683.52,0.00015342,2]
[43641,1714331563547,-513.23,0.00015342,2]
[43642,1714331563557,-757.63,0.00015342,2]
[43643,1714331563567,-500.0,0.00015342,2]
[43645,1714331563585,-1511.1,0.00015342,2]
[43647,1714331563606,-753.04,0.00015342,2]
[43649,1714331563624,-500.0,0.00015342,2]
[43651,1714331563643,-729.6,0.00015342,2]
[43653,1714331563662,-500.0,0.00015342,2]
[43655,1714331563681,-1439.12,0.00015342,2]
[43657,1714331563700,-768.05,0.00015342,2]
[43658,1714331563709,-3328.96,0.00015342,2]
[43659,1714331563721,-726.91,0.00015342,2]
[43660,1714331563731,-1119.03,0.00015342,2]
[43661,1714331563741,-555.89,0.00015342,2]
[43662,1714331563751,-1829.87,0.00015342,2]
[43663,1714331563762,-502.88,0.00015342,2]
[43665,1714331563785,-1369.84,0.00015342,2]
[43667,1714331563807,-2951.91,0.00015342,2]
[43669,1714331563827,-1806.02,0.00015342,2]
[43671,1714331563848,-782.34,0.00015342,2]
[43673,1714331563869,-8529.27,0.00015342,2]
[43675,1714331563891,-925.51,0.00015342,2]
[43677,1714331563912,-5159.18,0.00015342,2]
[43679,1714331563932,-863.14,0.00015342,2]
[43681,1714331563952,-925.79,0.00015342,2]
[43683,1714331563972,-674.92,0.00015342,2]
[43685,1714331563992,-4341.09,0.00015342,2]
[43687,1714331564012,-500.0,0.00015342,2]
[43689,1714331564031,-632.02,0.00015342,2]
[43691,1714331564050,-982.93,0.00015342,2]
[43693,1714331564069,-1459.2,0.00015342,2]
[43695,1714331564090,-900.56,0.00015342,2]
[43697,1714331564109,-500.0,0.00015342,2]
[43698,1714331564119,-3164.21,0.00015342,2]
[43699,1714331564129,-870.22,0.00015342,2]
[43700,1714331564139,-760.17,0.00015342,2]
[43701,1714331564148,-812.36,0.00015342,2]
[43702,1714331564158,-2951.22,0.00015342,2]
[43703,1714331564168,-1319.84,0.00015342,2]
[43704,1714331564178,-856.74,0.00015342,2]
[43705,1714331564188,-532.65,0.00015342,2]
[43707,1714331564209,-506.42,0.00015342,2]
[43709,1714331564229,-5810.04,0.00015342,2]
[43710,1714331564241,-1754.95,0.00015342,2]
[43711,1714331564252,-1243.71,0.00015342,2]
[43713,1714331564275,-11529.36,0.00015342,2]
[43715,1714331564297,-2615.87,0.00015342,2]
[43717,1714331564320,-813.94,0.00015342,2]
[43719,1714331564341,-903.91,0.00015342,2]
[43721,1714331564360,-1550.17,0.00015342,2]
[43723,1714331564384,-613.08,0.00015342,2]
[43725,1714331564406,-565.24,0.00015342,2]
[43727,1714331564430,-1711.83,0.00015342,2]
[43729,1714331564450,-1211.25,0.00015342,2]
[43731,1714331564471,-1062.05,0.00015342,2]
[43732,1714331564481,-995.48,0.00015342,2]
[43733,1714331564490,-500.0,0.00015342,2]
[43735,1714331564508,-938.89,0.00015342,2]
[43736,1714331564518,-579.0,0.00015342,2]
[43737,1714331564527,-500.0,0.00015342,2]
[43738,1714331564536,-500.0,0.00015342,2]
[43739,1714331564545,-531.05,0.00015342,2]
[43740,1714331564554,-3800.95,0.00015342,2]
[43741,1714331564564,-509.12,0.00015342,2]
[43742,1714331564574,-2169.37,0.00015342,2]
[43743,1714331564583,-500.0,0.00015342,2]
[43744,1714331564593,-2292.13,0.00015342,2]
[43745,1714331564602,-894.45,0.00015342,2]
[43746,1714331564612,-11916.14,0.00015342,2]
[43747,1714331564621,-706.5,0.00015342,2]
[43748,1714331564630,-774.47,0.00015342,2]
[43749,1714331564640,-1489.82,0.00015342,2]
[43750,1714331564649,-4212.02,0.00015342,2]
[43751,1714331564658,-973.0,0.00015342,2]
[43752,1714331564667,-1126.83,0.00015342,2]
[43753,1714331564677,-672.42,0.00015342,2]
[43754,1714331564686,-5235.42,0.00015342,2]
[43755,1714331564696,-1242.59,0.00015342,2]
[43756,1714331565032,-1138.49,0.00015342,2]
[43757,1714331565041,-500.0,0.00015342,2]
[43758,1714331565052,-1401.31,0.00015342,2]
[43759,1714331565062,-917.33,0.00015342,2]
[43760,1714331565072,-860.55,0.00015342,2]
[43761,1714331565081,-977.7,0.00015342,2]
[43762,1714331565091,-1049.2,0.00015342,2]
[43763,1714331565101,-524.08,0.00015342,2]
[43764,1714331565110,-6674.97,0.00015342,2]
[43765,1714331565119,-16083.09,0.00015342,2]
[43766,1714331565128,-723.16,0.00015342,2]
[43767,1714331565138,-761.59,0.00015342,2]
[43768,1714331565147,-1549.43,0.00015342,2]
[43769,1714331565157,-1266.3,0.00015342,2]
[43770,1714331565166,-951.73,0.00015342,2]
[43771,1714331565175,-1185.86,0.00015342,2]
[43773,1714331565194,-2988.7,0.00015342,2]
[43775,1714331565213,-619.85,0.00015342,2]
[43777,1714331565235,-1206.57,0.00015342,2]
[43779,1714331565255,-1600.41,0.00015342,2]
[43781,1714331565278,-3105.73,0.00015342,2]
[43783,1714331565298,-3774.23,0.00015342,2]
[43785,1714331565318,-897.97,0.00015342,2]
[43787,1714331565339,-1975.3,0.00015342,2]
[43789,1714331565361,-1962.38,0.00015342,2]
[43791,1714331565385,-2736.52,0.00015342,2]
[43793,1714331565405,-2923.81,0.00015342,2]
[43795,1714331565425,-678.26,0.00015342,2]
[43797,1714331565443,-1370.1,0.00015342,2]
[43799,1714331565466,-1204.37,0.00015342,2]
[43801,1714331565488,-20011.43,0.00015342,2]
[43803,1714331565510,-8592.95,0.00015342,2]
[43805,1714331565529,-5719.97,0.00015342,2]
[43807,1714331565548,-500.0,0.00015342,2]
[43809,1714331565566,-808.74,0.00015342,2]
[43811,1714331565585,-328.71506121,0.00015398,2]
[43813,1714331565606,-260.0,0.000154,2]
[43815,1714331565630,-150.0,0.00015472,2]
[43817,1714331565648,-328.71506121,0.00015489,2]
[43819,1714331565670,-328.71506121,0.00015581,2]
[43821,1714331565692,-510.25,0.00015616,2]
[43823,1714331565714,-605.3,0.00015616,2]
[43825,1714331565736,-607.32,0.00015616,2]
[43827,1714331565759,-500.0,0.00015616,2]
[43829,1714331565779,-744.02,0.00015616,2]
[43831,1714331565799,-634.38,0.00015616,2]
[43833,1714331565819,-610.03,0.00015616,2]
[43835,1714331565838,-588.27,0.00015616,2]
[43837,1714331565856,-500.0,0.00015616,2]
[43839,1714331565875,-546.92,0.00015616,2]
[43841,1714331565894,-500.0,0.00015616,2]
[43843,1714331565914,-500.0,0.00015616,2]
[43845,1714331565932,-500.0,0.00015616,2]
[43847,1714331565951,-500.0,0.00015616,2]
[43849,1714331565971,-652.17,0.00015616,2]
[43851,1714331565990,-712.36,0.00015616,2]
[43853,1714331566009,-566.45,0.00015616,2]
[43855,1714331566028,-583.37,0.00015616,2]
[43857,1714331566048,-500.0,0.00015616,2]
[43859,1714331566068,-500.0,0.00015616,2]
[43861,1714331566088,-323.07936732,0.00015616,2]
[43863,1714331566108,-574.66,0.00015616,2]
[43865,1714331566127,-624.41,0.00015616,2]
[43867,1714331566146,-557.05,0.00015616,2]
[43869,1714331566166,-500.0,0.00015616,2]
[43870,1714331566175,-678.48,0.00015616,2]
[43871,1714331566185,-500.0,0.00015616,2]
[43872,1714331566195,-801.46,0.00015616,2]
[43873,1714331566205,-533.0,0.00015616,2]
[43874,1714331566215,-649.51,0.00015616,2]
[43875,1714331566224,-899.28,0.00015616,2]
[43876,1714331566234,-500.0,0.00015616,2]
[43877,1714331566243,-500.0,0.00015616,2]
[43879,1714331566263,-500.0,0.00015616,2]
[43881,1714331566282,-500.0,0.00015616,2]
[43883,1714331566301,-581.74,0.00015616,2]
[43885,1714331566319,-783.25,0.00015616,2]
[43887,1714331566339,-816.26,0.00015616,2]
[43889,1714331566358,-891.97,0.00015616,2]
[43891,1714331566381,-527.72,0.00015616,2]
[43893,1714331566400,-788.51,0.00015616,2]
[43895,1714331566421,-513.17,0.00015616,2]
[43897,1714331566443,-1610.42,0.00015616,2]
[43899,1714331566464,-500.0,0.00015616,2]
[43901,1714331566486,-513.55,0.00015616,2]
[43903,1714331566506,-643.86,0.00015616,2]
[43905,1714331566528,-803.65,0.00015616,2]
[43907,1714331566549,-575.03,0.00015616,2]
[43909,1714331566573,-538.42,0.00015616,2]
[43911,1714331566593,-772.95,0.00015616,2]
[43913,1714331566614,-513.25,0.00015616,2]
[43915,1714331566635,-645.92,0.00015616,2]
[43917,1714331566655,-592.76,0.00015616,2]
[43919,1714331566675,-765.46,0.00015616,2]
[43921,1714331566694,-585.78,0.00015616,2]
[43923,1714331566716,-519.38,0.00015616,2]
[43925,1714331566738,-535.83,0.00015616,2]
[43927,1714331566760,-581.86,0.00015616,2]
[43929,1714331566782,-608.78,0.00015616,2]
[43930,1714331566793,-640.22,0.00015616,2]
[43931,1714331566805,-710.87,0.00015616,2]
[43933,1714331566825,-500.0,0.00015616,2]
[43934,1714331566834,-810.35,0.00015616,2]
[43935,1714331566844,-222.23887098,0.00015616,2]
[43937,1714331566864,-544.86,0.00015616,2]
[43939,1714331566883,-500.0,0.00015616,2]
[43941,1714331566903,-704.75,0.00015616,2]
[43943,1714331566925,-500.0,0.00015616,2]
[43945,1714331566947,-534.78,0.00015616,2]
[43947,1714331566966,-698.54,0.00015616,2]
[43949,1714331566985,-682.92,0.00015616,2]
[43951,1714331567004,-1031.24,0.00015616,2]
[43953,1714331567023,-628.44,0.00015616,2]
[43955,1714331567043,-807.65,0.00015616,2]
[43957,1714331567063,-721.68,0.00015616,2]
[43959,1714331567084,-500.0,0.00015616,2]
[43961,1714331567105,-290.38,0.00015616,2]
[43963,1714331567124,-646.9,0.00015616,2]
[43965,1714331567143,-588.44,0.00015616,2]
[43967,1714331567162,-556.97,0.00015616,2]
[43969,1714331567181,-888.38,0.00015616,2]
[43971,1714331567200,-500.0,0.00015616,2]
[43973,1714331567219,-596.12,0.00015616,2]
[43975,1714331567238,-614.15,0.00015616,2]
[43977,1714331567256,-500.0,0.00015616,2]
[43979,1714331567275,-500.0,0.00015616,2]
[43980,1714331567284,-214.73391903,0.00015616,2]
[43981,1714331567294,-601.85,0.00015616,2]
[43982,1714331567303,-500.0,0.00015616,2]
[43983,1714331567313,-708.42,0.00015616,2]
[43984,1714331567322,-581.50225598,0.00015616,2]
[43985,1714331567332,-500.0,0.00015616,2]
[43986,1714331567341,-500.0,0.00015616,2]
[43987,1714331567351,-500.0,0.00015616,2]
[43988,1714331567360,-520.06,0.00015616,2]
[43989,1714331567372,-765.39,0.00015616,2]
[43990,1714331567383,-510.54,0.00015616,2]
[43991,1714331567392,-979.76,0.00015616,2]
[43992,1714331567402,-801.75,0.00015616,2]
[43993,1714331567412,-662.94,0.00015616,2]
[43994,1714331567421,-906.44,0.00015616,2]
[43995,1714331567431,-551.42,0.00015616,2]
[43996,1714331567440,-837.85,0.00015616,2]
[43997,1714331567450,-511.71,0.00015616,2]
[43998,1714331567460,-500.0,0.00015616,2]
[43999,1714331567553,-913.43,0.00015616,2]
[44001,1714331567575,-540.89,0.00015616,2]
[44002,1714331567585,-500.0,0.00015616,2]
[44003,1714331567596,-577.63,0.00015616,2]
[44005,1714331567617,-500.0,0.00015616,2]
[44007,1714331567638,-500.0,0.00015616,2]
[44009,1714331567657,-500.0,0.00015616,2]
[44011,1714331567676,-500.0,0.00015616,2]
[44013,1714331567698,-538.0,0.00015616,2]
[44015,1714331567720,-551.04,0.00015616,2]
[44016,1714331567730,-604.53,0.00015616,2]
[44017,1714331567741,-500.0,0.00015616,2]
[44018,1714331567751,-383.63,0.00015616,2]
[44019,1714331567763,-768.34,0.00015616,2]
[44020,1714331567774,-531.88,0.00015616,2]
[44021,1714331567784,-1007.48,0.00015616,2]
[44023,1714331567803,-532.51,0.00015616,2]
[44025,1714331567824,-986.84,0.00015616,2]
[44027,1714331567847,-625.85,0.00015616,2]
[44029,1714331567866,-1026.14,0.00015616,2]
[44031,1714331567885,-1489.77,0.00015616,2]
[44033,1714331567904,-1492.28,0.00015616,2]
[44035,1714331567922,-2487.11,0.00015616,2]
[44037,1714331567941,-979.15,0.00015616,2]
[44039,1714331567959,-513.23,0.00015616,2]
[44041,1714331567978,-500.0,0.00015616,2]
[44043,1714331567996,-1511.1,0.00015616,2]
[44045,1714331568015,-753.04,0.00015616,2]
[44047,1714331568034,-500.0,0.00015616,2]
[44049,1714331568053,-729.6,0.00015616,2]
[44051,1714331568072,-500.0,0.00015616,2]
[44052,1714331568081,-560.22,0.00015616,2]
[44053,1714331568091,-1439.12,0.00015616,2]
[44054,1714331568100,-2375.71,0.00015616,2]
[44055,1714331568110,-768.05,0.00015616,2]
[44056,1714331568119,-3328.96,0.00015616,2]
[44057,1714331568128,-726.91,0.00015616,2]
[44058,1714331568139,-1119.03,0.00015616,2]
[44059,1714331568148,-555.89,0.00015616,2]
[44061,1714331568167,-502.88,0.00015616,2]
[44063,1714331568185,-1369.84,0.00015616,2]
[44065,1714331568204,-2951.91,0.00015616,2]
[44067,1714331568223,-1806.02,0.00015616,2]
[44069,1714331568241,-782.34,0.00015616,2]
[44071,1714331568260,-8529.27,0.00015616,2]
[44073,1714331568279,-925.51,0.00015616,2]
[44075,1714331568297,-5159.18,0.00015616,2]
[44077,1714331568315,-863.14,0.00015616,2]
[44079,1714331568334,-925.79,0.00015616,2]
[44081,1714331568352,-674.92,0.00015616,2]
[44083,1714331568370,-4341.09,0.00015616,2]
[44085,1714331568394,-500.0,0.00015616,2]
[44087,1714331568413,-632.02,0.00015616,2]
[44089,1714331568435,-982.93,0.00015616,2]
[44091,1714331568454,-1459.2,0.00015616,2]
[44093,1714331568472,-900.56,0.00015616,2]
[44095,1714331568492,-500.0,0.00015616,2]
[44097,1714331568511,-870.22,0.00015616,2]
[44099,1714331568530,-812.36,0.00015616,2]
[44101,1714331568549,-1319.84,0.00015616,2]
[44103,1714331568569,-532.65,0.00015616,2]
[44105,1714331568598,-506.42,0.00015616,2]
[44107,1714331568616,-5810.04,0.00015616,2]
[44109,1714331568634,-1243.71,0.00015616,2]
[44111,1714331568654,-11529.36,0.00015616,2]
[44113,1714331568672,-2615.87,0.00015616,2]
[44115,1714331568691,-813.94,0.00015616,2]
[44117,1714331568711,-903.91,0.00015616,2]
[44119,1714331568729,-1550.17,0.00015616,2]
[44121,1714331568747,-613.08,0.00015616,2]
[44123,1714331568766,-565.24,0.00015616,2]
[44125,1714331568785,-1711.83,0.00015616,2]
[44127,1714331568803,-1211.25,0.00015616,2]
[44129,1714331568822,-1062.05,0.00015616,2]
[44131,1714331568840,-500.0,0.00015616,2]
[44133,1714331568859,-938.89,0.00015616,2]
[44135,1714331568878,-500.0,0.00015616,2]
[44137,1714331568896,-3800.95,0.00015616,2]
[44139,1714331568915,-2169.37,0.00015616,2]
[44141,1714331568933,-531.05,0.00015616,2]
[44143,1714331568952,-894.45,0.00015616,2]
[44145,1714331568970,-706.5,0.00015616,2]
[44147,1714331568989,-4212.02,0.00015616,2]
[44149,1714331569008,-973.0,0.00015616,2]
[44151,1714331569027,-672.42,0.00015616,2]
[44153,1714331569046,-1242.59,0.00015616,2]
[44155,1714331569067,-500.0,0.00015616,2]
[44157,1714331569086,-917.33,0.00015616,2]
[44159,1714331569105,-977.7,0.00015616,2]